[Event "ONJK FGH 1"]
[Site "Enschede, Netherlands"]
[Date "2022.08.09"]
[Round "4.1"]
[White "De Wit, Jim"]
[Black "Oelmeijer, Sjoerd"]
[Result "0-1"]
[TimeControl "25min + 10sec/move"]
[WhiteElo "889"]
[BlackElo "743"]

1. d4 {[%clk 00:25:17]} {[%emt 00:00:03]} d5 {[%clk 00:25:13]} {[%emt
00:00:07]} 2. c4 {[%clk 00:25:24]} {[%emt 00:00:03]} e6 {[%clk 00:25:18]}
{[%emt 00:00:05]} 3. Nc3 {[%clk 00:25:30]} {[%emt 00:00:04]} Nf6 {[%clk
00:25:14]} {[%emt 00:00:15]} 4. Bg5 {[%clk 00:25:35]} {[%emt 00:00:04]} Nbd7
{[%clk 00:25:08]} {[%emt 00:00:17]} 5. e4 {[%clk 00:25:37]} {[%emt 00:00:07]}
dxe4 {[%clk 00:25:02]} {[%emt 00:00:17]} 6. Nxe4 {[%clk 00:25:43]} {[%emt
00:00:04]} Bb4+ {[%clk 00:24:38]} {[%emt 00:00:35]} 7. Nc3 {[%clk 00:25:32]}
{[%emt 00:00:21]} Be7 {[%clk 00:24:34]} {[%emt 00:00:13]} 8. Nf3 {[%clk
00:25:36]} {[%emt 00:00:06]} O-O {[%clk 00:24:35]} {[%emt 00:00:10]} 9. Bd3
{[%clk 00:25:39]} {[%emt 00:00:07]} h6 {[%clk 00:24:32]} {[%emt 00:00:13]} 10.
Bxf6 {[%clk 00:25:43]} {[%emt 00:00:07]} Nxf6 {[%clk 00:24:28]} {[%emt
00:00:13]} 11. O-O {[%clk 00:25:44]} {[%emt 00:00:08]} b6 {[%clk 00:24:26]}
{[%emt 00:00:13]} 12. Ne4 {[%clk 00:25:37]} {[%emt 00:00:10]} Bb7 {[%clk
00:24:15]} {[%emt 00:00:28]} 13. Nxf6+ {[%clk 00:25:38]} {[%emt 00:00:08]} Bxf6
{[%clk 00:24:16]} {[%emt 00:00:09]} 14. Be2 {[%clk 00:25:45]} {[%emt 00:00:03]}
Bxf3 {[%clk 00:23:51]} {[%emt 00:00:36]} 15. Bxf3 {[%clk 00:25:51]} {[%emt
00:00:03]} Rb8 {[%clk 00:23:45]} {[%emt 00:00:17]} 16. d5 {[%clk 00:25:51]}
{[%emt 00:00:09]} exd5 {[%clk 00:23:44]} {[%emt 00:00:12]} 17. cxd5 {[%clk
00:25:52]} {[%emt 00:00:09]} Re8 {[%clk 00:23:36]} {[%emt 00:00:18]} 18. Rb1
{[%clk 00:25:56]} {[%emt 00:00:03]} Qd7 {[%clk 00:23:06]} {[%emt 00:00:43]} 19.
Rc1 {[%clk 00:25:45]} {[%emt 00:00:20]} Bxb2 {[%clk 00:23:02]} {[%emt
00:00:15]} 20. Rc2 {[%clk 00:25:52]} {[%emt 00:00:03]} Bf6 {[%clk 00:22:58]}
{[%emt 00:00:14]} 21. h3 {[%clk 00:25:02]} {[%emt 00:00:59]} Rbc8 {[%clk
00:22:03]} {[%emt 00:01:06]} 22. Bg4 {[%clk 00:25:06]} {[%emt 00:00:04]} Qd8
{[%clk 00:21:27]} {[%emt 00:00:48]} 23. Bxc8 {[%clk 00:25:04]} {[%emt
00:00:11]} Qxc8 {[%clk 00:21:28]} {[%emt 00:00:09]} 24. d6 {[%clk 00:25:09]}
{[%emt 00:00:05]} Rd8 {[%clk 00:20:01]} {[%emt 00:01:37]} 25. Rxc7 {[%clk
00:24:33]} {[%emt 00:00:45]} Qe6 {[%clk 00:19:36]} {[%emt 00:00:35]} 26. Re1
{[%clk 00:24:25]} {[%emt 00:00:18]} Qxd6 {[%clk 00:19:24]} {[%emt 00:00:22]} 27.
Qc2 {[%clk 00:23:42]} {[%emt 00:00:52]} Be5 {[%clk 00:18:37]} {[%emt 00:00:59]}
28. Rxa7 {[%clk 00:22:30]} {[%emt 00:01:22]} Re8 {[%clk 00:17:41]} {[%emt
00:01:06]} 29. g3 {[%clk 00:22:15]} {[%emt 00:00:25]} Rf8 {[%clk 00:16:51]}
{[%emt 00:01:00]} 30. Qf5 {[%clk 00:21:16]} {[%emt 00:01:06]} Bf6 {[%clk
00:15:24]} {[%emt 00:01:40]} 31. a3 {[%clk 00:20:53]} {[%emt 00:00:31]} Qb8
{[%clk 00:14:10]} {[%emt 00:01:27]} 32. Ra4 {[%clk 00:20:44]} {[%emt 00:00:18]}
b5 {[%clk 00:13:10]} {[%emt 00:01:11]} 33. Rb4 {[%clk 00:20:41]} {[%emt
00:00:12]} Bc3 {[%clk 00:12:51]} {[%emt 00:00:29]} 34. Reb1 {[%clk 00:20:01]}
{[%emt 00:00:10]} Bxb4 {[%clk 00:12:59]} {[%emt 00:00:42]} 35. Rxb4 {[%clk
00:20:09]} {[%emt 00:00:03]} Qa8 {[%clk 00:12:17]} {[%emt 00:00:51]} 36. Qxb5
{[%clk 00:19:53]} {[%emt 00:00:26]} Qxa3 {[%clk 00:12:02]} {[%emt 00:00:25]} 37.
Rb1 {[%clk 00:19:57]} {[%emt 00:00:05]} Qa8 {[%clk 00:11:33]} {[%emt 00:00:40]}
38. Qe2 {[%clk 00:19:41]} {[%emt 00:00:18]} Qc8 {[%clk 00:11:15]} {[%emt
00:00:35]} 39. Kh2 {[%clk 00:18:11]} {[%emt 00:01:40]} Re8 {[%clk 00:10:42]}
{[%emt 00:00:45]} 40. Qf1 {[%clk 00:18:13]} {[%emt 00:00:06]} Qe6 {[%clk
00:09:43]} {[%emt 00:01:10]} 41. Kg1 {[%clk 00:18:06]} {[%emt 00:00:16]} Qe2
{[%clk 00:09:22]} {[%emt 00:00:33]} 42. Qxe2 {[%clk 00:17:57]} {[%emt
00:00:18]} Rxe2 {[%clk 00:09:22]} {[%emt 00:00:10]} 43. Rf1 {[%clk 00:17:49]}
{[%emt 00:00:08]} Re8 {[%clk 00:09:21]} {[%emt 00:00:22]} 44. f3 {[%clk
00:17:52]} {[%emt 00:00:06]} Rf8 {[%clk 00:09:17]} {[%emt 00:00:15]} 45. Rf2
{[%clk 00:17:58]} {[%emt 00:00:03]} f5 {[%clk 00:09:18]} {[%emt 00:00:09]} 46.
Kg2 {[%clk 00:17:54]} {[%emt 00:00:13]} f4 {[%clk 00:09:19]} {[%emt 00:00:10]}
47. g4 {[%clk 00:18:01]} {[%emt 00:00:02]} g6 {[%clk 00:08:54]} {[%emt
00:00:36]} 48. h4 {[%clk 00:18:04]} {[%emt 00:00:06]} g5 {[%clk 00:08:50]}
{[%emt 00:00:15]} 49. h5 {[%clk 00:18:10]} {[%emt 00:00:03]} Kf7 {[%clk
00:08:28]} {[%emt 00:00:33]} 50. Rc2 {[%clk 00:18:04]} {[%emt 00:00:14]} Ke6
{[%clk 00:08:18]} {[%emt 00:00:22]} 51. Re2+ {[%clk 00:18:06]} {[%emt
00:00:07]} Kd5 {[%clk 00:08:09]} {[%emt 00:00:19]} 52. Kf2 {[%clk 00:17:45]}
{[%emt 00:00:05]} Kd4 {[%clk 00:08:18]} {[%emt 00:00:28]} 53. Re4+ {[%clk
00:17:52]} {[%emt 00:00:02]} Kd3 {[%clk 00:08:06]} {[%emt 00:00:22]} 54. Re2
{[%clk 00:17:16]} {[%emt 00:00:45]} Rc8 {[%clk 00:08:01]} {[%emt 00:00:15]} 55.
Ke1 {[%clk 00:16:52]} {[%emt 00:00:33]} Rc3 {[%clk 00:07:47]} {[%emt 00:00:26]}
56. Kf2 {[%clk 00:16:53]} {[%emt 00:00:08]} Rc2 {[%clk 00:07:40]} {[%emt
00:00:18]} 57. Rxc2 {[%clk 00:16:55]} {[%emt 00:00:08]} Kxc2 {[%clk 00:07:43]}
{[%emt 00:00:07]} 58. Ke2 {[%clk 00:17:03]} Kc3 {[%clk 00:07:29]} {[%emt
00:00:25]} 59. Ke1 {[%clk 00:17:04]} {[%emt 00:00:08]} Kd3 {[%clk 00:07:25]}
{[%emt 00:00:16]} 60. Kf2 {[%clk 00:17:09]} {[%emt 00:00:03]} Kd2 {[%clk
00:07:16]} {[%emt 00:00:19]} 61. Kf1 {[%clk 00:17:10]} {[%emt 00:00:08]} Ke3
{[%clk 00:07:10]} {[%emt 00:00:18]} 62. Kg2 {[%clk 00:17:19]} Ke2 {[%clk
00:06:54]} {[%emt 00:00:26]} 63. Kg1 {[%clk 00:17:18]} {[%emt 00:00:11]} Kxf3
{[%clk 00:07:03]} {[%emt 00:00:02]} 64. Kh2 {[%clk 00:17:25]} {[%emt 00:00:02]}
Kxg4 {[%clk 00:07:12]} {[%emt 00:00:02]} 65. Kg2 {[%clk 00:17:34]} {[%emt
00:00:01]} Kxh5 {[%clk 00:07:21]} {[%emt 00:00:02]} 66. Kf3 {[%clk 00:17:42]}
{[%emt 00:00:02]} g4+ {[%clk 00:07:29]} {[%emt 00:00:01]} 67. Kxf4 {[%clk
00:17:49]} {[%emt 00:00:02]} Kh4 {[%clk 00:07:38]} {[%emt 00:00:02]} 68. Ke3
{[%clk 00:17:58]} {[%emt 00:00:01]} g3 {[%clk 00:07:46]} {[%emt 00:00:01]} 69.
Kf3 {[%clk 00:18:07]} {[%emt 00:00:02]} Kh3 {[%clk 00:07:55]} 70. Ke2 {[%clk
00:18:14]} {[%emt 00:00:03]} Kh2 {[%clk 00:08:04]} {[%emt 00:00:02]} 71. Kf1
{[%clk 00:18:22]} g2+ {[%clk 00:08:12]} {[%emt 00:00:02]} 72. Kf2 {[%clk
00:18:31]} g1=Q+ {[%clk 00:08:19]} {[%emt 00:00:04]} 73. Kf3 {[%clk 00:18:39]}
h5 {[%clk 00:08:22]} {[%emt 00:00:07]} 74. Kf4 {[%clk 00:18:48]} {[%emt
00:00:01]} Qg2 {[%clk 00:08:31]} {[%emt 00:00:02]} 75. Ke3 {[%clk 00:18:56]}
{[%emt 00:00:02]} Qf1 {[%clk 00:08:38]} {[%emt 00:00:03]} 76. Ke4 {[%clk
00:19:05]} {[%emt 00:00:02]} Qf2 {[%clk 00:08:47]} {[%emt 00:00:01]} 77. Ke5
{[%clk 00:19:13]} {[%emt 00:00:02]} Qf3 {[%clk 00:08:56]} 78. Kd4 {[%clk
00:19:22]} {[%emt 00:00:01]} Qe2 {[%clk 00:09:04]} {[%emt 00:00:02]} 79. Kd5
{[%clk 00:19:31]} {[%emt 00:00:01]} h4 {[%clk 00:09:10]} {[%emt 00:00:04]} 80.
Kd4 {[%clk 00:19:39]} {[%emt 00:00:01]} Kg2 {[%clk 00:09:19]} {[%emt 00:00:03]}
81. Kd5 {[%clk 00:19:47]} Qd3+ {[%clk 00:09:26]} {[%emt 00:00:03]} 82. Ke5
{[%clk 00:19:56]} h3 {[%clk 00:09:32]} {[%emt 00:00:04]} 83. Kf4 {[%clk
00:20:05]} h2 {[%clk 00:09:39]} {[%emt 00:00:04]} 84. Kg4 {[%clk 00:20:13]}
h1=Q {[%emt 00:00:05]} 85. Kf4 {[%clk 00:20:21]} {[%emt 00:00:02]} Qf3+ {[%clk
00:09:51]} {[%emt 00:00:03]} 86. Ke5 {[%clk 00:20:29]} {[%emt 00:00:02]} Qe1+
{[%clk 00:09:59]} {[%emt 00:00:02]} 87. Kd5 {[%clk 00:20:37]} {[%emt 00:00:02]}
Qd3+ {[%clk 00:10:07]} {[%emt 00:00:02]} 88. Kc5 {[%clk 00:20:44]} {[%emt
00:00:03]} Qc1+ {[%clk 00:10:16]} {[%emt 00:00:02]} 89. Kb6 {[%emt 00:00:04]}
Qb3+ {[%clk 00:10:19]} {[%emt 00:00:03]} 90. Ka6 {[%clk 00:21:01]} {[%emt
00:00:02]} Qa1# {[%clk 00:10:17]} {[%emt 00:00:01]} 0-1

[Event "ONJK FGH 1"]
[Site "Enschede, Netherlands"]
[Date "2022.08.09"]
[Round "4.2"]
[White "Okita, Ryoga"]
[Black "Zantingh, Kyo"]
[Result "1-0"]
[TimeControl "25min + 10sec/move"]
[WhiteElo "829"]
[BlackElo "739"]

1. e4 {[%emt 00:00:02]} f5 {[%clk 00:25:19]} 2. d4 {[%clk 00:25:25]} {[%emt
00:00:04]} fxe4 {[%clk 00:25:27]} {[%emt 00:00:02]} 3. Nc3 {[%clk 00:25:34]}
Nf6 {[%clk 00:25:34]} {[%emt 00:00:03]} 4. f3 {[%clk 00:25:43]} exf3 {[%clk
00:25:43]} 5. Nxf3 {[%clk 00:25:52]} {[%emt 00:00:01]} e6 {[%clk 00:25:49]}
{[%emt 00:00:04]} 6. Bc4 {[%clk 00:25:59]} {[%emt 00:00:03]} d5 {[%clk
00:25:50]} {[%emt 00:00:08]} 7. Bb5+ {[%clk 00:26:09]} c6 {[%clk 00:25:59]}
{[%emt 00:00:03]} 8. Ba4 {[%clk 00:26:18]} Be7 {[%clk 00:26:06]} {[%emt
00:00:02]} 9. O-O {[%clk 00:26:18]} {[%emt 00:00:10]} O-O {[%clk 00:26:11]}
{[%emt 00:00:05]} 10. Ne5 {[%clk 00:26:27]} Bd6 {[%clk 00:26:14]} {[%emt
00:00:07]} 11. Bg5 {[%clk 00:26:24]} {[%emt 00:00:14]} h6 {[%clk 00:26:19]}
{[%emt 00:00:05]} 12. Bh4 {[%clk 00:26:31]} {[%emt 00:00:03]} Bxe5 {[%clk
00:26:25]} {[%emt 00:00:04]} 13. dxe5 {[%clk 00:26:40]} b5 {[%clk 00:26:28]}
{[%emt 00:00:07]} 14. exf6 {[%clk 00:26:33]} {[%emt 00:00:16]} bxa4 {[%clk
00:26:32]} {[%emt 00:00:07]} 15. fxg7 {[%clk 00:26:28]} {[%emt 00:00:15]} Qxh4
{[%clk 00:26:40]} {[%emt 00:00:02]} 16. gxf8=Q+ {[%clk 00:26:29]} {[%emt
00:00:08]} Kh7 {[%clk 00:26:46]} {[%emt 00:00:04]} 17. Qd3+ {[%clk 00:26:38]}
{[%emt 00:00:02]} Qe4 {[%clk 00:26:51]} {[%emt 00:00:05]} 18. Rf7+ {[%clk
00:26:46]} {[%emt 00:00:02]} Kg6 {[%clk 00:26:59]} {[%emt 00:00:02]} 19. Qg3+
{[%clk 00:26:54]} {[%emt 00:00:02]} Kh5 {[%clk 00:27:06]} {[%emt 00:00:03]} 20.
Nxe4 {[%clk 00:26:57]} {[%emt 00:00:07]} dxe4 {[%clk 00:26:44]} {[%emt
00:00:31]} 21. Qe8 {[%clk 00:27:01]} {[%emt 00:00:06]} e5 {[%clk 00:26:51]}
{[%emt 00:00:04]} 22. Rf5# {[%clk 00:26:28]} {[%emt 00:00:21]} 1-0

[Event "ONJK FGH 1"]
[Site "Enschede, Netherlands"]
[Date "2022.08.09"]
[Round "4.3"]
[White "Terlouw, Frank"]
[Black "Verwer, Cedric"]
[Result "1-0"]
[TimeControl "25min + 10sec/move"]
[WhiteElo "731"]
[BlackElo "552"]

1. e4 {[%clk 00:25:18]} e5 {[%clk 00:25:19]} {[%emt 00:00:02]} 2. Nf3 {[%clk
00:25:26]} {[%emt 00:00:01]} Nc6 {[%clk 00:25:28]} {[%emt 00:00:02]} 3. Bb5
{[%clk 00:25:31]} {[%emt 00:00:06]} a6 {[%clk 00:25:36]} {[%emt 00:00:02]} 4.
Bxc6 {[%clk 00:25:34]} {[%emt 00:00:06]} dxc6 {[%clk 00:25:36]} {[%emt
00:00:10]} 5. c3 {[%clk 00:25:36]} {[%emt 00:00:06]} Nf6 {[%clk 00:25:39]}
{[%emt 00:00:10]} 6. O-O {[%clk 00:25:37]} {[%emt 00:00:09]} Bd6 {[%clk
00:25:46]} {[%emt 00:00:03]} 7. Re1 {[%clk 00:25:40]} {[%emt 00:00:06]} O-O
{[%clk 00:25:49]} {[%emt 00:00:07]} 8. d4 {[%clk 00:25:49]} Bg4 {[%clk
00:25:48]} {[%emt 00:00:12]} 9. h3 {[%clk 00:25:33]} {[%emt 00:00:26]} Bxf3
{[%clk 00:25:55]} {[%emt 00:00:02]} 10. Qxf3 {[%clk 00:25:41]} c5 {[%clk
00:25:51]} {[%emt 00:00:16]} 11. dxc5 {[%clk 00:25:12]} {[%emt 00:00:39]} Bxc5
{[%clk 00:25:50]} {[%emt 00:00:11]} 12. Bg5 {[%clk 00:24:59]} {[%emt 00:00:13]}
Be7 {[%clk 00:25:41]} {[%emt 00:00:30]} 13. Rd1 {[%clk 00:24:37]} {[%emt
00:00:32]} Nd7 {[%clk 00:25:08]} {[%emt 00:00:43]} 14. Bxe7 {[%clk 00:24:14]}
{[%emt 00:00:31]} Qxe7 {[%clk 00:25:09]} {[%emt 00:00:10]} 15. Qf5 {[%clk
00:24:03]} {[%emt 00:00:17]} Nf6 {[%clk 00:25:13]} {[%emt 00:00:09]} 16. Nd2
{[%clk 00:23:28]} {[%emt 00:00:46]} g6 {[%emt 00:01:28]} 17. Qf3 {[%clk
00:22:51]} {[%emt 00:00:09]} Rad8 {[%clk 00:24:23]} {[%emt 00:00:20]} 18. Nc4
{[%clk 00:22:55]} {[%emt 00:00:06]} Rxd1+ {[%clk 00:24:28]} {[%emt 00:00:06]}
19. Rxd1 {[%clk 00:23:03]} {[%emt 00:00:02]} Qc5 {[%clk 00:24:33]} {[%emt
00:00:04]} 20. Ne3 {[%clk 00:22:38]} {[%emt 00:00:33]} Nh5 {[%clk 00:24:11]}
{[%emt 00:00:34]} 21. g3 {[%clk 00:21:57]} {[%emt 00:00:51]} Qc6 {[%clk
00:23:33]} {[%emt 00:00:49]} 22. Nd5 {[%clk 00:21:13]} {[%emt 00:00:53]} Qc5
{[%clk 00:23:11]} {[%emt 00:00:32]} 23. Ne3 {[%clk 00:20:29]} {[%emt 00:00:53]}
Qb6 {[%clk 00:23:00]} {[%emt 00:00:19]} 24. b3 {[%clk 00:20:08]} {[%emt
00:00:34]} Qa5 {[%clk 00:22:53]} {[%emt 00:00:17]} 25. g4 {[%clk 00:19:50]}
{[%emt 00:00:27]} Nf4 {[%clk 00:22:36]} {[%emt 00:00:28]} 26. Nd5 {[%clk
00:19:53]} {[%emt 00:00:07]} Ne6 {[%clk 00:22:16]} {[%emt 00:00:31]} 27. Ne7+
{[%clk 00:19:26]} {[%emt 00:00:36]} Kg7 {[%clk 00:21:58]} {[%emt 00:00:28]} 28.
Nd5 {[%clk 00:19:06]} {[%emt 00:00:30]} Qxa2 {[%clk 00:21:54]} {[%emt
00:00:15]} 29. Qf6+ {[%clk 00:18:58]} {[%emt 00:00:16]} Kh6 {[%clk 00:21:56]}
{[%emt 00:00:09]} 30. Qh4+ {[%clk 00:18:41]} {[%emt 00:00:27]} Kg7 {[%clk
00:22:00]} {[%emt 00:00:05]} 31. Qf6+ {[%clk 00:18:25]} {[%emt 00:00:27]} Kh6
{[%clk 00:22:09]} {[%emt 00:00:01]} 32. Ne7 {[%clk 00:17:34]} {[%emt 00:01:01]}
Nf4 {[%clk 00:21:30]} {[%emt 00:00:50]} 33. Nf5# {[%clk 00:17:20]} {[%emt
00:00:13]} 1-0

[Event "ONJK FGH 1"]
[Site "Enschede, Netherlands"]
[Date "2022.08.09"]
[Round "5.1"]
[White "Oelmeijer, Sjoerd"]
[Black "Okita, Ryoga"]
[Result "0-1"]
[TimeControl "25min + 10sec/move"]
[WhiteElo "743"]
[BlackElo "829"]

1. e4 {[%clk 00:25:19]} {[%emt 00:05:30]} e5 {[%clk 00:25:18]} {[%emt
00:00:02]} 2. Nf3 {[%clk 00:25:23]} {[%emt 00:00:07]} Nc6 {[%clk 00:25:17]}
{[%emt 00:00:11]} 3. Bc4 {[%clk 00:25:21]} {[%emt 00:00:12]} Nf6 {[%clk
00:25:25]} {[%emt 00:00:01]} 4. Ng5 {[%clk 00:25:15]} {[%emt 00:00:16]} d5
{[%clk 00:25:24]} {[%emt 00:00:11]} 5. exd5 {[%clk 00:25:16]} {[%emt 00:00:09]}
Nxd5 {[%clk 00:25:29]} {[%emt 00:00:05]} 6. d3 {[%clk 00:24:46]} {[%emt
00:00:40]} Bc5 {[%clk 00:25:25]} {[%emt 00:00:14]} 7. O-O {[%clk 00:24:40]}
{[%emt 00:00:17]} h6 {[%clk 00:25:22]} {[%emt 00:00:13]} 8. Ne4 {[%clk
00:24:34]} {[%emt 00:00:16]} Bb6 {[%clk 00:25:23]} {[%emt 00:00:09]} 9. Bxd5
{[%clk 00:24:18]} {[%emt 00:00:24]} Qxd5 {[%clk 00:25:30]} {[%emt 00:00:04]} 10.
Nbc3 {[%clk 00:24:11]} {[%emt 00:00:17]} Qd8 {[%clk 00:25:32]} {[%emt
00:00:09]} 11. Be3 {[%clk 00:23:45]} {[%emt 00:00:36]} O-O {[%clk 00:25:36]}
{[%emt 00:00:06]} 12. Bxb6 {[%clk 00:23:36]} {[%emt 00:00:19]} axb6 {[%clk
00:25:44]} 13. f4 {[%clk 00:22:49]} {[%emt 00:00:57]} f5 {[%clk 00:25:47]}
{[%emt 00:00:07]} 14. Ng3 {[%clk 00:22:13]} {[%emt 00:00:47]} exf4 {[%clk
00:25:34]} {[%emt 00:00:23]} 15. Rxf4 {[%clk 00:22:10]} {[%emt 00:00:12]} Qg5
{[%clk 00:25:14]} {[%emt 00:00:30]} 16. Rf1 {[%clk 00:21:45]} {[%emt 00:00:35]}
f4 {[%clk 00:25:07]} {[%emt 00:00:17]} 17. Nge4 {[%clk 00:21:23]} {[%emt
00:00:33]} Qg6 {[%clk 00:25:07]} {[%emt 00:00:07]} 18. Nd5 {[%clk 00:20:32]}
{[%emt 00:01:03]} Bg4 {[%clk 00:24:59]} {[%emt 00:00:17]} 19. Qd2 {[%clk
00:19:47]} {[%emt 00:00:56]} f3 {[%clk 00:24:48]} {[%emt 00:00:22]} 20. g3
{[%clk 00:19:25]} {[%emt 00:00:31]} Bh3 {[%clk 00:24:48]} {[%emt 00:00:09]} 21.
Rf2 {[%clk 00:18:59]} {[%emt 00:00:38]} Kh8 {[%clk 00:24:33]} {[%emt 00:00:25]}
22. Nxc7 {[%clk 00:18:06]} {[%emt 00:01:02]} Rac8 {[%clk 00:24:34]} {[%emt
00:00:07]} 23. Nd5 {[%clk 00:17:48]} {[%emt 00:00:31]} Rcd8 {[%clk 00:24:00]}
{[%emt 00:00:44]} 24. Nf4 {[%clk 00:17:25]} {[%emt 00:00:33]} Rxf4 {[%clk
00:23:42]} {[%emt 00:00:26]} 25. Qxf4 {[%clk 00:17:12]} {[%emt 00:00:24]} Nd4
{[%clk 00:23:30]} {[%emt 00:00:23]} 26. Qc7 {[%clk 00:15:23]} {[%emt 00:01:58]}
Rc8 {[%clk 00:23:08]} {[%emt 00:00:33]} 27. Qxb6 {[%clk 00:14:48]} {[%emt
00:00:45]} Qxb6 {[%clk 00:23:09]} {[%emt 00:00:08]} 28. c3 {[%clk 00:13:01]}
{[%emt 00:01:57]} Ne2+ {[%clk 00:23:16]} {[%emt 00:00:04]} 29. Kh1 {[%clk
00:12:07]} {[%emt 00:01:18]} Bg2+ {[%clk 00:23:30]} {[%emt 00:00:01]} 30. Rxg2
{[%clk 00:11:56]} {[%emt 00:00:21]} fxg2+ {[%clk 00:23:39]} {[%emt 00:00:02]}
31. Kxg2 {[%clk 00:11:42]} {[%emt 00:00:24]} Qxb2 {[%clk 00:23:47]} {[%emt
00:00:01]} 32. Re1 {[%clk 00:11:11]} {[%emt 00:00:41]} Nxc3+ {[%clk 00:23:51]}
{[%emt 00:00:05]} 33. Nf2 {[%clk 00:10:57]} {[%emt 00:00:25]} Rf8 {[%clk
00:23:57]} {[%emt 00:00:05]} 34. Rf1 {[%clk 00:10:26]} {[%emt 00:00:41]} Qxa2
{[%clk 00:23:52]} {[%emt 00:00:15]} 35. h3 {[%clk 00:09:44]} {[%emt 00:00:52]}
Qd5+ {[%clk 00:23:58]} {[%emt 00:00:05]} 36. Kg1 {[%clk 00:09:32]} {[%emt
00:00:22]} Ne2+ {[%clk 00:24:06]} {[%emt 00:00:02]} 37. Kh2 {[%clk 00:09:18]}
{[%emt 00:00:24]} Nxg3 {[%clk 00:23:59]} {[%emt 00:00:17]} 38. Kxg3 {[%clk
00:09:03]} {[%emt 00:00:24]} Qf3+ {[%clk 00:24:07]} {[%emt 00:00:02]} 39. Kh2
{[%clk 00:08:41]} {[%emt 00:00:33]} Qxf2+ {[%clk 00:24:15]} {[%emt 00:00:01]}
40. Rxf2 {[%clk 00:08:38]} {[%emt 00:00:12]} Rxf2+ {[%clk 00:24:23]} {[%emt
00:00:03]} 41. Kg3 {[%clk 00:08:25]} {[%emt 00:00:24]} Rd2 {[%clk 00:24:32]} 42.
Kf3 {[%clk 00:07:33]} {[%emt 00:01:02]} Rxd3+ {[%clk 00:24:41]} 43. Ke4 {[%clk
00:07:12]} {[%emt 00:00:30]} Rxh3 {[%clk 00:24:49]} {[%emt 00:00:02]} 44. Kd5
{[%clk 00:06:58]} {[%emt 00:00:24]} g5 {[%clk 00:24:54]} {[%emt 00:00:05]} 45.
Kd6 {[%clk 00:06:35]} {[%emt 00:00:34]} g4 {[%clk 00:25:03]} 46. Kc7 {[%clk
00:06:26]} {[%emt 00:00:18]} g3 {[%clk 00:25:12]} 47. Kxb7 {[%clk 00:06:15]}
{[%emt 00:00:21]} g2 {[%clk 00:25:22]} 48. Kc6 {[%clk 00:06:06]} {[%emt
00:00:20]} g1=Q {[%emt 00:00:04]} 49. Kd5 {[%clk 00:05:42]} {[%emt 00:00:32]}
Re3 {[%clk 00:25:37]} {[%emt 00:00:02]} 50. Kd4 {[%clk 00:05:31]} {[%emt
00:00:22]} Qf2 {[%clk 00:25:46]} {[%emt 00:00:01]} 51. Kc4 {[%clk 00:05:01]}
{[%emt 00:00:40]} Qd2 {[%clk 00:25:53]} {[%emt 00:00:02]} 52. Kc5 {[%clk
00:04:10]} {[%emt 00:01:01]} Rc3+ {[%clk 00:26:02]} {[%emt 00:00:02]} 53. Kb4
{[%clk 00:03:57]} {[%emt 00:00:23]} Qb2+ {[%clk 00:26:11]} 0-1